bitfinex/quotes_BTCUSD_20240715
["timestamp","ask_amount","ask_price","bid_price","bid_amount"]
[1721010211970,0.02529733,61707.0,61706.0,2.26887613]
[1721010213450,0.02529733,61707.0,61706.0,2.215445]
[1721010213656,0.02529733,61707.0,61706.0,2.60449413]
[1721010215499,0.02529733,61707.0,61706.0,2.78449413]
[1721010215655,0.02529733,61707.0,61706.0,2.79749413]
[1721010215855,0.02529733,61707.0,61706.0,2.81049413]
[1721010216077,0.02529733,61707.0,61706.0,2.61049413]
[1721010216280,0.02529733,61707.0,61706.0,2.81049413]
[1721010218289,0.02529733,61707.0,61706.0,3.20219913]
[1721010218517,0.02529733,61707.0,61706.0,3.30219913]
[1721010218742,0.02529733,61707.0,61706.0,3.28919913]
[1721010219019,0.02529733,61707.0,61706.0,2.99749413]
[1721010219246,0.02529733,61707.0,61706.0,3.01149413]
[1721010219486,0.02529733,61707.0,61706.0,2.98449413]
[1721010219721,0.02529733,61707.0,61706.0,3.01249413]
[1721010220444,0.02529733,61707.0,61706.0,2.99849413]
[1721010220634,0.02529733,61707.0,61706.0,3.01249413]
[1721010222057,0.02529733,61707.0,61706.0,3.04499413]
[1721010222948,0.02529733,61707.0,61706.0,3.01699413]
[1721010223184,0.02529733,61707.0,61706.0,3.03099413]
[1721010223404,0.02529733,61707.0,61706.0,3.04499413]
[1721010223907,0.02529733,61707.0,61706.0,3.33669913]
[1721010225058,0.00833,61712.0,61711.0,2.81204013]
[1721010225306,0.00833,61712.0,61711.0,3.33013013]
[1721010225544,0.00833,61712.0,61711.0,3.83013013]
[1721010225780,0.00833,61712.0,61711.0,3.86263013]
[1721010225979,0.00833,61714.0,61711.0,3.86263013]
[1721010225980,0.00833,61714.0,61713.0,2.88979813]
[1721010226186,0.00833,61714.0,61713.0,3.39493051]
[1721010227915,0.00833,61714.0,61713.0,3.40893051]
[1721010228399,0.00833,61714.0,61713.0,3.11725851]
[1721010228602,0.00833,61714.0,61713.0,3.13125851]
[1721010228801,0.00833,61714.0,61713.0,3.21125851]
[1721010229801,0.00833,61714.0,61713.0,3.22525851]
[1721010230169,0.00833,61714.0,61713.0,3.21125851]
[1721010230859,0.00833,61714.0,61713.0,3.50293051]
[1721010231613,0.00833,61714.0,61713.0,3.51693051]
[1721010233028,0.00833,61714.0,61713.0,3.52692948]
[1721010235507,0.00833,61714.0,61713.0,3.53525948]
[1721010237118,0.00833,61714.0,61713.0,3.24358748]
[1721010237512,0.00833,61714.0,61713.0,3.14958748]
[1721010237731,0.00833,61714.0,61713.0,3.23525748]
[1721010237937,0.00833,61714.0,61713.0,2.47538548]
[1721010238186,0.00833,61714.0,61713.0,1.8366611]
[1721010238434,0.00833,61714.0,61713.0,1.8966611]
[1721010238639,0.00833,61714.0,61713.0,1.8366611]
[1721010238848,0.00833,61714.0,61713.0,0.83248213]
[1721010239059,0.08363,61714.0,61713.0,0.80448213]
[1721010239476,0.08363,61714.0,61713.0,0.81848213]
[1721010239618,0.08363,61714.0,61713.0,0.83248213]
[1721010239811,0.08363,61714.0,61713.0,0.81848213]
[1721010240033,0.08363,61714.0,61713.0,0.95031813]
[1721010240452,0.00833,61714.0,61713.0,1.53366213]
[1721010240660,0.00833,61714.0,61713.0,1.59366213]
[1721010240998,0.00833,61714.0,61713.0,1.54766213]
[1721010241271,0.00833,61714.0,61713.0,1.62166213]
[1721010241496,0.00833,61714.0,61713.0,1.60766213]
[1721010241692,0.00833,61714.0,61713.0,2.07033413]
[1721010241895,0.00833,61714.0,61713.0,2.08333413]
[1721010242270,0.00833,61714.0,61713.0,2.07033413]
[1721010242678,0.00833,61714.0,61713.0,2.05633413]
[1721010242882,0.00833,61714.0,61713.0,2.07033413]
[1721010243805,0.00833,61714.0,61713.0,2.08333413]
[1721010244045,0.00833,61714.0,61713.0,2.57500613]
[1721010244253,0.00833,61714.0,61713.0,3.00140613]
[1721010244649,0.00833,61714.0,61713.0,3.01540613]
[1721010244884,0.00833,61714.0,61713.0,2.81540613]
[1721010245007,0.00833,61714.0,61713.0,2.67600613]
[1721010245621,0.00833,61714.0,61713.0,2.11333413]
[1721010245823,0.00833,61714.0,61713.0,2.28433413]
[1721010246215,0.00833,61714.0,61713.0,2.67600613]
[1721010247626,0.00833,61714.0,61713.0,2.38433413]
[1721010250830,0.00833,61714.0,61713.0,2.18433413]
[1721010251032,0.14563,61714.0,61713.0,1.73266213]
[1721010251674,0.14563,61714.0,61713.0,1.56166213]
[1721010252070,0.14563,61714.0,61713.0,0.887182]
[1721010252764,0.591232,61714.0,61713.0,0.547346]
[1721010252968,0.8829,61714.0,61713.0,0.741346]
[1721010253167,0.01643,61714.0,61713.0,2.49705851]
[1721010253371,0.01643,61714.0,61713.0,2.55705851]
[1721010253573,0.01643,61714.0,61713.0,2.25138651]
[1721010253770,0.15813,61714.0,61713.0,1.33704251]
[1721010254092,0.15813,61714.0,61713.0,1.05837051]
[1721010254268,0.15313,61714.0,61713.0,1.33604251]
[1721010254469,0.15313,61714.0,61713.0,1.32304251]
[1721010254699,0.15313,61714.0,61713.0,1.33304251]
[1721010254898,0.15313,61714.0,61713.0,1.32304251]
[1721010255295,0.15313,61714.0,61713.0,1.62871451]
[1721010255511,0.15313,61714.0,61713.0,1.61471451]
[1721010255875,0.15313,61714.0,61713.0,1.64271451]
[1721010256523,0.15313,61714.0,61713.0,1.62871451]
[1721010256733,0.15313,61714.0,61713.0,1.64271451]
[1721010257969,0.15313,61714.0,61713.0,1.05937051]
[1721010258523,0.15313,61714.0,61713.0,1.35104251]
[1721010259094,0.15313,61714.0,61713.0,0.77423438]
[1721010259312,0.37182409,61714.0,61713.0,0.44608]
[1721010259484,0.66348392,61714.0,61713.0,0.44608]
[1721010259695,0.01143,61714.0,61713.0,1.74463751]
[1721010259927,0.01143,61714.0,61713.0,2.35647351]
[1721010260100,0.01143,61714.0,61713.0,2.64814551]
[1721010260281,0.01143,61714.0,61713.0,2.73414551]
[1721010260478,0.01143,61714.0,61713.0,2.87354551]
[1721010260856,0.01143,61714.0,61713.0,2.80944551]
[1721010261062,0.01143,61714.0,61713.0,2.69544551]
[1721010261261,0.01143,61714.0,61713.0,2.62014551]
[1721010261621,0.01143,61714.0,61713.0,2.39914551]
[1721010261825,0.01143,61714.0,61713.0,2.38514551]
[1721010262107,0.01143,61714.0,61713.0,2.40905799]
[1721010262282,0.01143,61714.0,61713.0,2.39914551]
[1721010262451,0.01143,61714.0,61713.0,2.41314551]
[1721010263061,0.01143,61714.0,61713.0,2.39914551]
[1721010263276,0.01143,61714.0,61713.0,2.41314551]
[1721010264081,0.01143,61714.0,61713.0,2.24214551]
[1721010264287,0.01143,61714.0,61713.0,2.65874551]
[1721010264488,0.01143,61714.0,61713.0,2.89374551]
[1721010264716,0.01143,61714.0,61713.0,3.09374551]
[1721010264914,0.01143,61714.0,61713.0,2.89374551]
[1721010265117,0.01143,61714.0,61713.0,3.09374551]
[1721010265316,0.01143,61714.0,61713.0,3.07974551]
[1721010265792,0.01143,61714.0,61713.0,3.06574551]
[1721010266159,0.01143,61714.0,61713.0,3.07974551]
[1721010266335,0.01143,61714.0,61713.0,3.09374551]
[1721010267674,0.01143,61714.0,61713.0,2.89374551]
[1721010268448,0.01143,61714.0,61713.0,2.81064551]
[1721010268854,0.01143,61714.0,61713.0,2.06238651]
[1721010269474,0.01143,61714.0,61713.0,2.12238651]
[1721010269731,0.01143,61714.0,61713.0,2.06238651]
[1721010270482,0.01123497,61714.0,61713.0,2.06238651]
[1721010270693,0.01123497,61714.0,61713.0,2.12238651]
[1721010275229,0.01123497,61714.0,61713.0,2.06238651]
[1721010276035,0.01123497,61714.0,61713.0,2.12238651]
[1721010276559,0.01123497,61714.0,61713.0,2.06238651]
[1721010276854,0.01123497,61714.0,61713.0,2.12238651]
[1721010280378,0.01123497,61714.0,61713.0,2.06238651]
[1721010281434,0.01123497,61714.0,61713.0,2.59978651]
[1721010287209,0.01123497,61714.0,61713.0,2.89145851]
[1721010287431,0.01123497,61714.0,61713.0,3.09145851]
[1721010287660,0.01123497,61714.0,61713.0,2.89145851]
[1721010289341,0.01123497,61714.0,61713.0,2.74905851]
[1721010289599,0.01123497,61714.0,61713.0,2.45738651]
[1721010290207,0.07713497,61714.0,61713.0,2.06238651]
[1721010290430,0.07713497,61714.0,61713.0,2.12238651]
[1721010291610,0.01123497,61714.0,61713.0,2.12238651]
[1721010292546,0.01123497,61714.0,61713.0,2.42198651]
[1721010293004,0.01123497,61714.0,61713.0,2.07685038]
[1721010293549,0.01123497,61714.0,61713.0,2.46589951]
[1721010294476,0.01123497,61714.0,61713.0,2.85757151]
[1721010294695,0.01123497,61714.0,61713.0,2.56589951]
[1721010294926,0.01123497,61714.0,61713.0,2.85757151]
[1721010295620,0.01123497,61714.0,61713.0,3.05757151]
[1721010298881,0.01123497,61714.0,61713.0,2.85757151]
[1721010300765,0.01123497,61714.0,61713.0,2.10629951]
[1721010301038,0.01123497,61714.0,61713.0,2.16629951]
[1721010302522,0.01123497,61714.0,61713.0,2.10629951]
[1721010302787,0.01123497,61714.0,61713.0,0.742259]
[1721010302788,0.29456897,61714.0,61713.0,0.742259]
[1721010303013,0.22168287,61714.0,61713.0,0.888095]
[1721010303282,0.14873497,61714.0,61713.0,1.56257513]
[1721010303540,0.01123497,61714.0,61713.0,1.91424713]
[1721010303783,0.01123497,61714.0,61713.0,1.88624713]
[1721010304025,0.01123497,61714.0,61713.0,1.90024713]
[1721010304245,0.01123497,61714.0,61713.0,1.84024713]
[1721010304490,0.01123497,61714.0,61713.0,1.90024713]
[1721010305674,0.01123497,61714.0,61713.0,1.88624713]
[1721010305913,0.01123497,61714.0,61713.0,1.90824713]
[1721010306403,0.01123497,61714.0,61713.0,1.89824713]
[1721010306654,0.01123497,61714.0,61713.0,1.90024713]
[1721010307049,0.01123497,61714.0,61713.0,2.66291913]
[1721010307628,0.01123497,61714.0,61713.0,2.44891913]
[1721010308827,0.01123497,61714.0,61713.0,2.46291913]
[1721010309026,0.01123497,61714.0,61713.0,2.47691913]
[1721010309161,0.01123497,61714.0,61713.0,2.46291913]
[1721010309732,0.01123497,61714.0,61713.0,2.47691913]
[1721010310065,0.01123497,61714.0,61713.0,2.46291913]
[1721010310965,0.01123497,61714.0,61713.0,2.47691913]
[1721010311667,0.01123497,61714.0,61713.0,1.85424713]
[1721010312685,0.01123497,61714.0,61713.0,1.91424713]
[1721010314522,0.01123497,61714.0,61713.0,2.18524713]
[1721010314959,0.01123497,61714.0,61713.0,2.24904713]
[1721010315158,0.01123497,61714.0,61713.0,2.48404713]
[1721010320049,0.01123497,61714.0,61713.0,2.56264713]
[1721010320651,0.01123497,61714.0,61713.0,2.76264713]
[1721010320864,0.01123497,61714.0,61713.0,3.05431913]
[1721010321056,0.01123497,61714.0,61713.0,2.85431913]
[1721010321673,0.01123497,61714.0,61713.0,2.56264713]
[1721010322457,0.01123497,61714.0,61713.0,2.85431913]
[1721010322835,0.01123497,61714.0,61713.0,2.56264713]
[1721010326205,0.01123497,61714.0,61713.0,2.32764713]
[1721010326406,0.01123497,61714.0,61713.0,2.42154713]
[1721010330455,0.01103995,61714.0,61713.0,2.42154713]
[1721010331693,0.01103995,61714.0,61713.0,2.62154713]
[1721010332096,0.01103995,61714.0,61713.0,3.01321913]
[1721010332238,0.01103995,61714.0,61713.0,3.11321913]
[1721010333280,0.0002454,61720.0,61719.0,1.39163313]
[1721010333490,0.0002454,61720.0,61719.0,2.56510151]
[1721010333732,0.0002454,61720.0,61719.0,3.14838951]
[1721010333910,0.0002454,61720.0,61719.0,3.44003351]
[1721010334518,0.0002454,61720.0,61719.0,3.46803351]
[1721010336003,0.0002454,61720.0,61719.0,3.44003351]
[1721010336418,0.0002454,61720.0,61719.0,3.90047751]
[1721010337027,0.00833,61721.0,61720.0,2.89011613]
[1721010337236,0.00833,61726.0,61724.0,1.82903913]
[1721010337437,0.01696733,61736.0,61732.0,1.063853]
[1721010337628,0.0628,61746.0,61732.0,2.90417151]
[1721010337834,0.08536353,61747.0,61732.0,3.04137151]
[1721010337835,0.0823,61747.0,61732.0,3.04137151]
[1721010338035,0.0823,61747.0,61732.0,3.62453551]
[1721010338240,0.08176569,61749.0,61732.0,3.62453551]
[1721010338516,0.01896569,61749.0,61732.0,3.91611751]
[1721010339403,0.01896569,61749.0,61732.0,3.62453551]
[1721010340012,0.142,61739.0,61732.0,3.13295351]
[1721010340237,0.142,61739.0,61732.0,3.33295351]
[1721010340447,0.0757,61743.0,61732.0,3.62453551]
[1721010340648,0.0757,61743.0,61732.0,3.63853551]
[1721010340780,0.01896569,61749.0,61732.0,3.62453551]
[1721010340781,0.0757,61746.0,61732.0,3.62453551]
[1721010341167,0.0757,61746.0,61732.0,3.65253551]
[1721010341369,0.0757,61746.0,61732.0,3.63853551]
[1721010341770,0.0757,61746.0,61732.0,3.65253551]
[1721010342593,0.0757,61746.0,61732.0,3.63853551]
[1721010342988,0.0757,61746.0,61732.0,3.65253551]
[1721010343947,0.01896569,61749.0,61732.0,3.65253551]
[1721010344933,0.01896569,61749.0,61732.0,3.66212446]
[1721010346523,0.01896569,61749.0,61732.0,3.64812446]
[1721010346937,0.01896569,61749.0,61732.0,3.66212446]
[1721010347357,0.01896569,61749.0,61732.0,3.63412446]
[1721010347820,0.01896569,61749.0,61732.0,3.66212446]
[1721010348111,0.01896569,61749.0,61732.0,3.64812446]
[1721010348311,0.01896569,61749.0,61732.0,3.66212446]
[1721010349657,0.01896569,61749.0,61732.0,3.64812446]
[1721010349950,0.01896569,61749.0,61732.0,3.92570646]
[1721010350124,0.01896569,61749.0,61732.0,3.96270646]
[1721010350335,0.01896569,61749.0,61732.0,3.97670646]
[1721010350785,0.01896569,61749.0,61732.0,3.66212446]
[1721010351004,0.1468,61744.0,61732.0,3.66212446]
[1721010354182,0.0809,61744.0,61732.0,3.66212446]
[1721010354410,0.1404,61748.0,61732.0,3.66212446]
[1721010355012,0.01896569,61749.0,61732.0,3.66212446]
[1721010356397,0.01896569,61749.0,61732.0,3.52132446]
[1721010357662,0.01896569,61749.0,61732.0,3.58626246]
[1721010359205,0.0793,61745.0,61732.0,3.58626246]
[1721010359575,0.0661,61744.0,61732.0,3.58626246]
[1721010361504,0.0661,61744.0,61732.0,3.29468046]
[1721010362449,0.0661,61744.0,61732.0,3.58626246]
[1721010362927,0.0752,61737.0,61732.0,3.50916246]
[1721010364009,0.0752,61737.0,61732.0,3.44422446]
[1721010364278,0.0822,61741.0,61732.0,3.44422446]
[1721010364500,0.0822,61741.0,61732.0,3.50916446]
[1721010364724,0.0822,61741.0,61732.0,2.92368246]
[1721010364940,0.0822,61741.0,61732.0,2.89254246]
[1721010365133,0.0822,61741.0,61732.0,3.09254246]
[1721010367174,0.0822,61741.0,61732.0,3.2271651]
[1721010369067,0.0822,61741.0,61740.0,1.96430913]
[1721010369338,0.0822,61741.0,61740.0,2.56320151]
[1721010370212,0.0822,61741.0,61740.0,2.57720151]
[1721010370680,0.0822,61741.0,61740.0,2.59120151]
[1721010371637,0.0661,61744.0,61743.0,1.51684713]
[1721010371850,0.0661,61744.0,61743.0,2.03466713]
[1721010372939,0.0661,61744.0,61743.0,2.04866713]
[1721010373900,0.0661,61744.0,61743.0,2.06266713]
[1721010375086,0.0661,61744.0,61743.0,2.48669813]
[1721010382530,0.0751,61745.0,61744.0,1.52283013]
[1721010382729,0.0751,61745.0,61744.0,1.94075013]
[1721010384001,0.0751,61745.0,61744.0,1.95475013]
[1721010384533,0.0751,61745.0,61744.0,1.96875013]
[1721010384941,0.0659,61748.0,61747.0,1.46669413]
[1721010385149,0.0659,61748.0,61747.0,1.97849413]
[1721010385332,0.0659,61748.0,61747.0,1.91849413]
[1721010385531,0.1455,61748.0,61747.0,1.91849413]
[1721010386449,0.1455,61748.0,61747.0,1.93249413]
[1721010387589,0.1455,61748.0,61747.0,1.94649413]
[1721010390680,0.1455,61748.0,61747.0,2.00649413]
[1721010390931,0.01896569,61749.0,61748.0,1.51676313]
[1721010391108,0.01896569,61749.0,61748.0,1.92171551]
[1721010392751,0.01896569,61749.0,61748.0,1.93571551]
[1721010392962,0.01896569,61749.0,61748.0,1.94971551]
[1721010397254,0.002,61749.0,61748.0,2.71222251]
[1721010397430,0.002,61749.0,61748.0,3.04862951]
[1721010397971,0.002,61749.0,61748.0,3.24862951]
[1721010398178,0.00832,61757.0,61748.0,3.24862951]
[1721010398179,0.00832,61757.0,61756.0,2.29691213]
[1721010398382,0.00832,61757.0,61756.0,2.79572451]
[1721010398587,0.00832,61757.0,61756.0,2.82822451]
[1721010398787,0.00832,61757.0,61756.0,3.29069351]
[1721010399460,0.00832,61757.0,61756.0,3.30469351]
[1721010399710,0.00832,61757.0,61756.0,3.31869351]
[1721010399891,0.00832,61757.0,61756.0,3.30469351]
[1721010400347,0.00832,61757.0,61756.0,3.31869351]
[1721010400551,0.002,61759.0,61758.0,2.60301913]
[1721010400722,0.002,61759.0,61758.0,2.99155913]
[1721010403198,0.002,61759.0,61758.0,3.08105913]
[1721010403338,0.00306353,61778.0,61758.0,3.08105913]
[1721010403339,1e-06,61782.0,61781.0,0.47581113]
[1721010403570,0.00306353,61788.0,61781.0,0.47581113]
[1721010403571,0.00306353,61788.0,61787.0,1.96749613]
[1721010403761,0.0205994,61806.0,61794.0,1.96341713]
[1721010403963,0.0205994,61806.0,61794.0,3.11029538]
[1721010404194,0.0205994,61806.0,61798.0,1.72816613]
[1721010404390,0.0205994,61806.0,61800.0,1.692008]
[1721010404549,0.0205994,61806.0,61803.0,1.06418913]
[1721010404772,0.0205994,61806.0,61803.0,2.95658456]
[1721010404972,0.0205994,61806.0,61803.0,3.39870743]
[1721010405217,0.01033,61819.0,61808.0,0.03613613]
[1721010405423,0.01033,61819.0,61808.0,3.41042513]
[1721010405639,0.01033,61819.0,61808.0,2.684953]
[1721010405798,0.1414,61814.0,61808.0,1.48812913]
[1721010405999,0.1414,61814.0,61808.0,1.58202913]
[1721010406283,0.1414,61814.0,61808.0,1.19690513]
[1721010406477,0.1414,61814.0,61808.0,1.48812913]
[1721010406856,0.076,61814.0,61808.0,2.06435313]
[1721010407062,0.076,61814.0,61808.0,1.96435313]
[1721010407270,0.076,61814.0,61808.0,2.03835313]
[1721010407477,0.076,61814.0,61808.0,2.13835313]
[1721010407707,0.076,61814.0,61808.0,1.86735313]
[1721010407914,0.0654,61818.0,61808.0,1.96735313]
[1721010408119,0.0654,61818.0,61808.0,1.95335313]
[1721010408546,0.01033,61819.0,61808.0,2.29107713]
[1721010408788,0.01033,61819.0,61808.0,2.01576613]
[1721010408997,0.01033,61819.0,61808.0,2.18676613]
[1721010409193,0.01033,61819.0,61808.0,2.21476613]
[1721010409398,0.01033,61819.0,61808.0,2.20076613]
[1721010409623,0.01033,61819.0,61808.0,2.18676613]
[1721010409852,0.01033,61819.0,61808.0,2.20076613]
[1721010410061,0.01033,61819.0,61808.0,2.21476613]
[1721010410264,0.01033,61819.0,61808.0,2.41476613]
[1721010410471,0.01033,61819.0,61808.0,2.69199013]
[1721010411073,0.01033,61819.0,61808.0,2.70599013]
[1721010411227,0.01033,61819.0,61808.0,2.69199013]
[1721010411631,0.01033,61819.0,61808.0,2.70599013]
[1721010411967,0.01033,61819.0,61808.0,2.69199013]
[1721010412157,0.01033,61819.0,61808.0,2.70599013]
[1721010412330,0.01033,61819.0,61808.0,2.69199013]
[1721010412546,0.01033,61819.0,61818.0,0.54040213]
[1721010412749,0.01033,61819.0,61818.0,3.19298051]
[1721010412952,0.002,61829.0,61828.0,1.26822713]
[1721010413152,0.002,61829.0,61828.0,2.19808951]
[1721010413329,0.002,61829.0,61828.0,2.48921951]
[1721010414055,0.002,61829.0,61828.0,2.52171951]
[1721010414259,0.002,61829.0,61828.0,2.48921951]
[1721010414462,0.002,61829.0,61828.0,2.53571951]
[1721010414630,0.002,61829.0,61828.0,3.29784951]
[1721010414830,0.002,61839.0,61828.0,3.29784951]
[1721010414831,0.002,61839.0,61838.0,1.26810913]
[1721010415062,0.002,61839.0,61838.0,2.19787451]
[1721010415287,0.002,61839.0,61838.0,2.73395751]
[1721010415486,0.267311,61850.0,61838.0,2.73395751]
[1721010415487,0.267311,61850.0,61848.0,1.491443]
[1721010415688,0.267311,61850.0,61848.0,2.21011451]
[1721010415891,0.267311,61850.0,61848.0,2.79218651]
[1721010416123,0.267311,61850.0,61848.0,2.17015051]
[1721010416301,0.267311,61850.0,61848.0,1.84661451]
[1721010416910,0.267311,61850.0,61848.0,2.29765051]
[1721010417114,0.267311,61850.0,61848.0,2.51515051]
[1721010417323,0.17004463,61850.0,61849.0,0.69648913]
[1721010417525,0.002,61859.0,61858.0,2.16236313]
[1721010417857,0.0122694,61867.0,61866.0,2.51838113]
[1721010417978,0.0122694,61867.0,61866.0,2.26976251]
[1721010418180,0.0122694,61867.0,61866.0,1.07038213]
[1721010418406,0.0122694,61867.0,61866.0,1.27260813]
[1721010418639,0.0122694,61867.0,61866.0,1.82201013]
[1721010418824,0.0122694,61867.0,61866.0,1.98201013]
[1721010419031,0.0122694,61867.0,61866.0,2.50716113]
[1721010419206,0.0122694,61867.0,61866.0,2.87816113]
[1721010419404,0.0122694,61867.0,61866.0,3.07816113]
[1721010419605,0.0122694,61867.0,61866.0,3.15176113]
[1721010419804,0.0122694,61867.0,61866.0,3.25176113]
[1721010420015,0.0122694,61867.0,61866.0,3.26576113]
[1721010420221,0.0122694,61867.0,61866.0,3.59359153]
[1721010420415,0.0122694,61867.0,61866.0,3.57959153]
[1721010420620,0.0122694,61867.0,61866.0,2.76081013]
[1721010420818,0.0122694,61867.0,61866.0,2.97481013]
[1721010421020,0.0122694,61867.0,61866.0,3.26576113]
[1721010421447,0.00832,61871.0,61868.0,1.82734413]
[1721010421650,0.00832,61871.0,61868.0,2.54155613]
[1721010421820,0.00832,61871.0,61870.0,1.82731913]
[1721010422025,0.00832,61871.0,61870.0,2.54151113]
[1721010422205,0.002,61889.0,61874.0,1.87118413]
[1721010422430,0.002,61889.0,61884.0,1.28020113]
[1721010422627,0.002,61889.0,61884.0,3.09124151]
[1721010422872,0.002,61889.0,61884.0,3.31709695]
[1721010423086,0.002,61889.0,61884.0,3.21709695]
[1721010423293,0.002,61889.0,61884.0,3.11709695]
[1721010424271,0.002,61889.0,61884.0,3.31709695]
[1721010424845,0.002,61889.0,61884.0,2.19517551]
[1721010425347,0.002,61889.0,61884.0,1.74430951]
[1721010425567,0.002,61889.0,61884.0,1.52744351]
[1721010425744,0.002,61889.0,61884.0,1.77230951]
[1721010426074,0.002,61889.0,61884.0,1.80430951]
[1721010426224,0.002,61889.0,61884.0,1.81830951]
[1721010426432,0.002,61889.0,61884.0,2.12317551]
[1721010426634,0.002,61889.0,61884.0,2.10917551]
[1721010427044,0.002,61889.0,61884.0,1.81830951]
[1721010427266,0.002,61889.0,61884.0,1.83230951]
[1721010428041,0.002,61889.0,61884.0,2.12317551]
[1721010429549,0.002,61889.0,61884.0,2.32317551]
[1721010429752,1e-08,61889.0,61888.0,0.99347]
[1721010429970,1e-08,61889.0,61888.0,1.57926613]
[1721010430155,1e-08,61889.0,61888.0,1.87011313]
[1721010430559,1e-08,61889.0,61888.0,1.51926613]
[1721010431085,1e-08,61889.0,61888.0,1.84242613]
[1721010431530,1e-08,61889.0,61888.0,2.19327313]
[1721010431730,1e-08,61889.0,61888.0,2.36077313]
[1721010431933,0.002,61899.0,61896.0,1.26742713]
[1721010432217,0.002,61899.0,61896.0,2.28552951]
[1721010433502,0.002,61899.0,61896.0,2.92283951]
[1721010433871,0.002,61899.0,61896.0,2.90883951]
[1721010434101,0.002,61899.0,61896.0,2.77100368]
[1721010434320,0.002,61899.0,61896.0,2.97100368]
[1721010434522,0.002,61899.0,61896.0,3.69408177]
[1721010434936,0.002,61899.0,61898.0,2.11778913]
[1721010435154,0.002,61909.0,61908.0,1.18927913]
[1721010435365,0.002,61909.0,61908.0,2.52119122]
[1721010435566,0.002,61909.0,61908.0,3.69345322]
[1721010435768,0.002,61909.0,61908.0,3.75865322]
[1721010436184,0.002,61909.0,61908.0,3.46789922]
[1721010436613,0.0002569,61928.0,61918.0,2.283447]
[1721010436952,0.0002569,61928.0,61918.0,3.71653389]
[1721010437122,0.0002569,61928.0,61918.0,3.34111913]
[1721010437328,0.0002569,61928.0,61918.0,3.27915551]
[1721010437557,0.0002569,61928.0,61918.0,3.51335551]
[1721010438174,0.0002569,61928.0,61918.0,3.31335551]
[1721010438394,0.0002569,61928.0,61918.0,2.41744851]
[1721010438530,0.0002569,61928.0,61918.0,3.34235551]
[1721010438734,0.0002569,61928.0,61918.0,3.24235551]
[1721010439140,0.289451,61919.0,61918.0,1.049286]
[1721010439348,0.289451,61919.0,61918.0,0.855286]
[1721010439539,0.1441,61919.0,61918.0,1.035286]
[1721010439740,0.1441,61919.0,61918.0,1.57648213]
[1721010439946,0.1441,61919.0,61918.0,1.86718913]
[1721010440160,0.0838,61919.0,61918.0,1.85318913]
[1721010440375,0.002,61919.0,61918.0,2.20389613]
[1721010440595,0.002,61919.0,61918.0,2.15689613]
[1721010440798,0.002,61919.0,61918.0,1.13942213]
[1721010440997,0.002,61919.0,61918.0,1.193639]
[1721010441200,0.002,61919.0,61918.0,0.854286]
[1721010441403,0.002,61919.0,61918.0,1.048286]
[1721010441615,0.002,61919.0,61918.0,0.854286]
[1721010441836,0.002,61919.0,61918.0,1.048286]
[1721010442035,0.002,61919.0,61918.0,1.180639]
[1721010442211,0.002,61919.0,61918.0,1.85318913]
[1721010442999,0.002,61919.0,61918.0,2.15789613]
[1721010443147,0.002,61919.0,61918.0,1.56248213]
[1721010443349,0.002,61919.0,61918.0,0.841286]
[1721010443550,0.002,61919.0,61918.0,1.049286]
[1721010443870,0.002,61919.0,61918.0,1.56248213]
[1721010444086,0.002,61919.0,61918.0,1.85318913]
[1721010444413,0.002,61919.0,61918.0,2.14389613]
[1721010444813,0.0002569,61928.0,61927.0,0.34248913]
[1721010445023,0.0002569,61928.0,61927.0,1.51840513]
[1721010445246,0.0002569,61928.0,61927.0,2.09973313]
[1721010445468,0.0002569,61928.0,61927.0,1.80906913]
[1721010446072,0.0002569,61928.0,61927.0,1.434269]
[1721010446482,0.0002569,61928.0,61927.0,1.08240913]
[1721010446670,0.0002569,61928.0,61927.0,0.797273]
[1721010447008,0.0002569,61928.0,61927.0,1.22774113]
[1721010447196,0.0002569,61928.0,61927.0,1.441269]
[1721010447395,0.0002569,61928.0,61927.0,1.53240513]
[1721010447616,0.0002569,61928.0,61927.0,1.82306913]
[1721010447815,0.0002569,61928.0,61927.0,1.441269]
[1721010448618,0.0002569,61928.0,61927.0,1.53240513]
[1721010448818,0.0002569,61928.0,61927.0,1.51840513]
[1721010449031,0.0002569,61928.0,61927.0,1.80906913]
[1721010449459,0.0002569,61928.0,61927.0,0.811273]
[1721010450016,0.0002569,61928.0,61927.0,0.73992]
[1721010450220,0.4362469,61928.0,61927.0,0.75392]
[1721010450438,0.4412469,61928.0,61927.0,0.564398]
[1721010450644,1.1692669,61928.0,61927.0,0.550398]
[1721010452164,1.1692669,61928.0,61927.0,0.564398]
[1721010452364,1.1692669,61928.0,61927.0,0.550398]
[1721010452570,1.5315739,61928.0,61927.0,0.550398]
[1721010452834,1.4510739,61928.0,61927.0,0.381798]
[1721010452999,1.4576739,61928.0,61927.0,0.378798]
[1721010453448,1.4576739,61928.0,61927.0,0.381798]
[1721010453654,1.48302899,61928.0,61927.0,0.378798]
[1721010453853,1.4576739,61928.0,61927.0,0.378798]
[1721010454097,1.4576739,61928.0,61927.0,0.380798]
[1721010454472,1.1670139,61928.0,61927.0,0.380798]
[1721010455422,1.1670139,61928.0,61927.0,0.378798]
[1721010455636,1.1133669,61928.0,61927.0,0.378798]
[1721010455844,0.2183869,61928.0,61927.0,0.380798]
[1721010456066,0.2183869,61928.0,61927.0,0.45985038]
[1721010456665,0.27154903,61928.0,61927.0,0.46185038]
[1721010456838,0.2183869,61928.0,61927.0,0.45985038]
[1721010457192,0.2183869,61928.0,61927.0,0.80633951]
[1721010457193,0.0664569,61928.0,61927.0,0.80633951]
[1721010457401,0.0002569,61928.0,61927.0,1.24233551]
[1721010458000,0.0002569,61928.0,61927.0,1.53299951]
[1721010458225,0.0002569,61928.0,61927.0,0.86053538]
[1721010458427,0.0002569,61928.0,61927.0,1.15119938]
[1721010458943,0.0002569,61928.0,61927.0,0.65385038]
[1721010459181,0.0002569,61928.0,61927.0,1.14719938]
[1721010459358,0.0012569,61928.0,61927.0,0.87053538]
[1721010459564,0.0002569,61928.0,61927.0,0.45985038]
[1721010459926,0.0002569,61928.0,61927.0,0.46685038]
[1721010459927,0.0012569,61928.0,61927.0,0.46685038]
[1721010460168,0.0012569,61928.0,61927.0,0.45485038]
[1721010460384,0.0012569,61928.0,61927.0,0.79418238]
[1721010460635,0.0022569,61928.0,61927.0,0.80818238]
[1721010460806,0.0022569,61928.0,61927.0,0.66285038]
[1721010460950,0.0072569,61928.0,61927.0,0.46885038]